Cogmind - Beta 16 @@@ ROGUE MODE // 2026.01.30 @ 19:42:23 Player: Xan Kriegor Result: Destroyed by G-47 Trooper with Particle Gun Performance ------------- Evolutions (1) 500 Regions Visited (2) 400 Robots Destroyed (9) 45 Value Destroyed (282) 282 Prototype IDs (0) 0 Alien Tech Used (0) 0 Bonus (0) 0 TOTAL SCORE: 1227 Bonus ------- None Cogmind --------- Core Integrity 0/400 Matter 300/300 Energy 250/250 System Corruption 0% Temperature Warm (120) Movement Walking (190) Ox1 Location -9/Materials Parts ------- > --- POWER (1) -------- Ion Engine > --- PROPULSION (2) --- Aluminum Leg > --- UTILITY (4) ------ Small Storage Unit Advanced Visual Processing Unit Hardened Light Armor Plating Hacking Suite > --- WEAPON (2) ------- (None) > --- INVENTORY (8) ---- Ion Engine Light Ion Engine Aluminum Leg Aluminum Leg Aluminum Leg Heat Sink Peak State ------------ > --- POWER ------------ Light Ion Engine > --- PROPULSION ------- Wheel Wheel > --- UTILITY ---------- Small Storage Unit Advanced Visual Processing Unit Hardened Light Armor Plating Hacking Suite > --- WEAPON ----------- Assault Rifle Light Assault Rifle > --- INVENTORY -------- Light Ion Engine Light Ion Engine Light Ion Engine Light Treads Light Treads Hardened Light Armor Plating Hardened Light Armor Plating Light Assault Rifle [Rating: 15] Favorites ----------- Power Light Ion Engine Engine Light Ion Engine Propulsion Wheel Treads Light Treads Leg Aluminum Leg Wheel Wheel Utility Small Storage Unit Device Heat Sink Storage Small Storage Unit Processor Advanced Visual Processing Unit Hackware Hacking Suite Protection Hardened Light Armor Plating Weapon Light Assault Rifle Energy Gun Small Laser Ballistic Gun Light Assault Rifle Build | -11 -10 -9 ------- Run | Yrd Mat Mat Slots Evolved 2 | . . 2 Power . | . . . Propulsion . | . . . Utility 2 | . . 2 Weapon . | . . . Parts Attached 24 | 6 3 15 Power 5 | 1 1 3 Engine 5 | 1 1 3 Core . | . . . Reactor . | . . . Propulsion 6 | 2 . 4 Treads 3 | . . 3 Leg 1 | . . 1 Wheel 2 | 2 . . Hover . | . . . Flight . | . . . Utility 8 | 1 1 6 Device 1 | . . 1 Storage 1 | 1 . . Processor 1 | . . 1 Hackware 2 | . . 2 Protection 3 | . 1 2 Artifact . | . . . Weapon 5 | 2 1 2 Energy Gun 1 | . . 1 Energy Cannon . | . . . Ballistic Gun 4 | 2 1 1 Ballistic Cannon . | . . . Launcher . | . . . Special Weapon . | . . . Impact Weapon . | . . . Slashing Weapon . | . . . Piercing Weapon . | . . . Special Melee Weapon . | . . . Unidentified Prototypes . | . . . Parts Lost 14 | . . 14 Power 2 | . . 2 Propulsion 5 | . . 5 Utility 3 | . . 3 Weapon 4 | . . 4 Highest Loss Streak 8 | . . 8 To Critical Strikes . | . . . Average Backups 6 | 4 7 6 Power 2 | . 2 2 Propulsion 3 | 2 3 2 Utility . | . . 1 Weapon . | . 1 . Tool/Special . | . . . Unused Backups 7 | . 3 4 Power 2 | . 1 1 Propulsion 5 | . 2 3 Utility . | . . . Weapon . | . . . Tool/Special . | . . . Average Slot Usage (%) 87 | . 85 89 Engine 11 | . 14 9 Treads 9 | . . 15 Wheel 13 | . 28 3 Device 1 | . . 2 Storage 12 | . 14 11 Processor 5 | . . 10 Hackware 3 | . . 6 Protection 6 | . . 10 Energy Gun 3 | . . 5 Ballistic Gun 20 | . 28 14 Peak Build Rating 15 | 6 9 15 Average Rating 9 | 5 6 12 On Entrance 5 | . 6 9 Avg Prop Armor Cover (%) . | . . . Naked Turns . | . . . Heaviest Build 18 | 11 16 18 Greatest Support 40 | 20 20 40 Greatest Overweight (x) 1 | . . 1 Average Overweight (x) . | . . . Largest Inventory Capacity 8 | 8 8 8 Average Capacity 7 | 7 8 8 Most Carried 8 | 6 8 8 Average Carried 6 | 4 7 6 Final Capacity 8 | 8 8 8 Final Carried 8 | 6 8 6 Class Distribution -------------------- 100% | Mutant Dominant Class ---------------- Mutant | -10/Materials Mutant | -9/Materials Resources | -11 -10 -9 ----------- Run | Yrd Mat Mat Matter Collected 508 | 244 50 214 Remotely . | . . . Salvage Created 361 | . 34 327 Parts 23 | . 4 19 Haulers Intercepted . | . . . Recyclers Shooed 1 | . 1 . Parts Field Recycled . | . . . Retrieved Matter . | . . . Parts Self-Destructed . | . . . Prevented . | . . . Parts Restored . | . . . Kills | -11 -10 -9 ------- Run | Yrd Mat Mat Combat Hostiles Destroyed 9 | . 2 7 Guns 9 | . 2 7 Classes Destroyed 3 | . 1 2 Swarmer 2 | . 2 . Grunt 6 | . . 6 Sentry 1 | . . 1 Best Kill Streak 3 | . 2 3 Combat Bots Only 3 | . 2 3 Max Kills in Single Turn 1 | . 1 1 Gunslinging . | . . . Exploded . | . . . Melee . | . . . Uniques/NPCs Destroyed . | . . . Combat | -11 -10 -9 -------- Run | Yrd Mat Mat Hostile Shots Fired 201 | . 15 186 Missed 38 | . 6 32 Hits 163 | . 9 154 Projectile 163 | . 9 154 Critical Strikes 3 | . . 3 Damage Taken 1979 | . 72 1907 Core 410 | . . 410 Absorbed by Shields . | . . . Core Remaining (%) 100 | 100 100 . Volleys Fired 64 | . 9 55 Largest 2 | . 2 2 Hottest 60 | . 40 60 Shots Fired 110 | . 18 92 Gun 110 | . 18 92 Cannon . | . . . Launcher . | . . . Special . | . . . Kinetic 92 | . 18 74 Thermal 18 | . . 18 Explosive . | . . . Electromagnetic . | . . . Robot Hit Streak 7 | . 3 7 Robot Miss Streak 5 | . 5 4 Penetration Max . | . . . Secondary Targets 1 | . . 1 Max Gunslinging Chain 1 | . . 1 Shots Hit Robots 68 | . 7 61 Core Hits 26 | . 3 23 Critical Kills . | . . . Critical Parts Destroyed . | . . . Critical Strikes . | . . . Melee Attacks . | . . . Impact . | . . . Slashing . | . . . Piercing . | . . . Sneak Attacks . | . . . Combat Hostiles . | . . . Follow-up Attacks . | . . . Damage Inflicted 656 | . 84 572 Guns 656 | . 84 572 Cannons . | . . . Explosions . | . . . Melee . | . . . Ramming . | . . . Kinetic 543 | . 84 459 Thermal 113 | . . 113 Explosive . | . . . Electromagnetic . | . . . Impact . | . . . Slashing . | . . . Piercing . | . . . Highest Corruption . | . . . Average Corruption . | . . . Corruption Purged . | . . . Corruption Blocked . | . . . Overload Shots . | . . . Overflow Damage . | . . . Projectiles . | . . . Explosions . | . . . Melee . | . . . Knockbacks . | . . . Impact . | . . . Kinetic . | . . . Secondary . | . . . Self-Inflicted Damage . | . . . Shots . | . . . Rammed . | . . . Targets Rammed . | . . . Kicked . | . . . Crushed . | . . . Highest Temperature 211 | . . 211 Average Temperature 79 | . . 79 Received Heat Transfer 1101 | . . 1101 Siege Activations . | . . . Martial Activations . | . . . Shielding Activations . | . . . Robots Disrupted . | . . . Combat Hostiles . | . . . Robots Corrupted . | . . . Combat Hostiles . | . . . Parts Fried . | . . . Impact Corruptions . | . . . Robots Melted . | . . . Combat Hostiles . | . . . Parts Melted . | . . . Heat Transferred 250 | . . 250 Parts Sabotaged . | . . . Parts Stolen . | . . . Parts Stripped . | . . . Power Chain Reactions . | . . . Alert | -11 -10 -9 ------- Run | Yrd Mat Mat Maximum Alert Level . | . . . Low Security (%) 100 | 100 100 100 Level 1 . | . . . Level 2 . | . . . Level 3 . | . . . Level 4 . | . . . Level 5 . | . . . High Security . | . . . Max Security . | . . . Peak Influence 65 | . 31 65 Initial 5 | . . 5 Average 11 | . 7 18 Influence Increases 271 | . 86 185 Destroy 0b10 Robot/C 180 | . 40 140 Destroy Leader 30 | . . 30 Destroy Structure 1 | . 1 . Partial Spotted 15 | . 15 . Lose Combat Pursuer 45 | . 30 15 Influence Decreases 271 | . 71 200 Entered New Map 10 | . . 10 Time Decay 181 | . 71 110 Lost Part 80 | . . 80 Squads Dispatched 2 | . 1 1 Investigation . | . . . Extermination . | . . . Reinforcement 2 | . 1 1 Assault . | . . . Garrison . | . . . Intercept . | . . . Searches Triggered . | . . . Construction Impeded . | . . . Haulers Reinforced . | . . . Active Scanning Responses . | . . . Cargo Convoy Interrupts . | . . . Stealth | -11 -10 -9 --------- Run | Yrd Mat Mat Distress Signals 2 | . 1 1 Communications Jammed . | . . . Distress Signals . | . . . Times Spotted 25 | . 8 17 Peak Tracking Total 10 | . 3 10 Tactical Retreats 2 | . 1 1 Traps | -11 -10 -9 ------- Run | Yrd Mat Mat Traps Triggered . | . . . Indirectly . | . . . Trap Hack Attempts . | . . . Triggered . | . . . Disarmed . | . . . Reprogrammed . | . . . Reused . | . . . Traps Extracted . | . . . Installed . | . . . Triggered . | . . . Machines | -11 -10 -9 ---------- Run | Yrd Mat Mat Machines Disabled . | . . . Max in Single Turn . | . . . Machines Repaired . | . . . Machines Dismantled . | . . . Machines Sabotaged . | . . . Overloaded Fab Kills . | . . . Hacking | -11 -10 -9 --------- Run | Yrd Mat Mat Machines Accessed 4 | . 3 1 Terminals 3 | . 2 1 Fabricators . | . . . Repair Stations . | . . . Recycling Units 1 | . 1 . Scanalyzers . | . . . Garrison Access . | . . . Total Hacks 9 | . 5 4 Successful 3 | . 1 2 Failed 6 | . 4 2 Catastrophic 2 | . 1 1 Database Lockouts . | . . . Manual 1 | . 1 . Terminals 8 | . 4 4 Fabricators . | . . . Repair Stations . | . . . Recycling Units 1 | . 1 . Scanalyzers . | . . . Garrison Access . | . . . Terminal Hacks 2 | . . 2 Alert Level 1 | . . 1 Locate Traps 1 | . . 1 Fabricator Hacks . | . . . Repair Station Hacks . | . . . Recycling Unit Hacks 1 | . 1 . Report Inventory 1 | . 1 . Scanalyzer . | . . . Garrison Access Hacks . | . . . Unauthorized Hacks . | . . . Terminals . | . . . Fabricators . | . . . Repair Stations . | . . . Recycling Units . | . . . Scanalyzers . | . . . Garrison Access . | . . . Data Cores Recovered . | . . . Used . | . . . Hacking Detections 3 | . 2 1 Full Trace Events 1 | . . 1 Feedback Events . | . . . Feedback Blocked . | . . . Robot Schematics Acquired . | . . . Robots Built . | . . . Authchips . | . . . Time . | . . . Total Robot Build Rating . | . . . Part Schematics Acquired . | . . . Parts Built . | . . . Authchips . | . . . Time . | . . . Total Part Build Rating . | . . . Part Studies Acquired . | . . . Parts Repaired . | . . . Time . | . . . Parts Recycled . | . . . Recycled Matter . | . . . Retrieved Matter . | . . . Retrieved Components . | . . . Parts Scanalyzed . | . . . Part Schematics Acquired . | . . . Parts Damaged . | . . . Bothacking | -11 -10 -9 ------------ Run | Yrd Mat Mat Used RIF Installer . | . . . Robots Hacked . | . . . Non-combat . | . . . Combat . | . . . Robot Hacks Applied . | . . . Relay Couplers Released . | . . . Fabnet Peak Effective % . | . . . Robots Rewired . | . . . Allies Hacked . | . . . Hacks Repelled . | . . . Allies | -11 -10 -9 -------- Run | Yrd Mat Mat Total Allies . | . . . Largest Group . | . . . Highest-Rated Group . | . . . Highest-Rated Ally . | . . . Total Orders . | . . . Ally Attacks . | . . . Total Damage . | . . . Kills . | . . . Allies Corrupted . | . . . Allies Melted . | . . . Intel | -11 -10 -9 ------- Run | Yrd Mat Mat Active Infowar (turns) 345 | . . 345 Optics 345 | . . 345 Robot Analysis Total . | . . . Derelict Logs Recovered . | . . . Drone Launches . | . . . Drone Recoveries . | . . . Exploration | -11 -10 -9 ------------- Run | Yrd Mat Mat Turns Passed 714 | 98 254 362 Spaces Moved 439 | 105 191 143 Core 3 | 3 . . Treads 106 | . . 106 Legs 2 | . . 2 Wheels 328 | 102 191 35 Hover . | . . . Flight . | . . . Fastest Speed 50 | 50 80 80 Average Speed 99 | 79 80 140 Slowest Speed 190 | 80 80 190 Overloaded Moves . | . . . Propulsion Burnouts . | . . . Robots Hopped . | . . . Potential Cave-ins . | . . . Cave-ins Triggered . | . . . Exploration Rate (%) 16 | 4 34 11 Regions Visited 2 Branch Regions . Pre-discovered Areas . | . . . Known Exits Taken . | . . . Unknown Exits Taken 2 | 1 1 . Scrap Searched . | . . . Spaces Dug . | . . . Terrain Destroyed . | . . . Melee . | . . . Projectile . | . . . AOE . | . . . Terrain Rammed . | . . . Walls Destroyed . | . . . Machines Disabled . | . . . Actions | -11 -10 -9 --------- Run | Yrd Mat Mat Total 616 | 116 277 223 Wait 69 | . 67 2 Move 437 | 104 190 143 Hop . | . . . Pick Up 16 | 6 4 6 Fast Attach 13 | 6 1 6 Attach 8 | . . 8 Detach 1 | . . 1 Swap 3 | . 2 1 Drop 5 | . 4 1 Fire 64 | . 9 55 Melee . | . . . Ram . | . . . Kick . | . . . Crush . | . . . Escape Stasis . | . . . Rewire . | . . . Trap . | . . . Miscellaneous . | . . . Route ------- -11/Scrapyard -10/Materials -9/Materials History --------- Turn | Location | Event 2 | -11/Scrapyard | Met Revision 17 13 | -11/Scrapyard | Discovered new exit (range 16) 99 | -11/Scrapyard | Entered Materials 331 | -10/Materials | Build established: Mutant 334 | -10/Materials | Discovered new exit (range 8) 353 | -10/Materials | Entered another Materials area 353 | -9/Materials | Evolved 2 slots: Utility x2 490 | -9/Materials | Lost 8 parts (2p3n2u1w) 490 | -9/Materials | Core integrity fell below 50% 691 | -9/Materials | Core integrity fell below 20% 715 | -9/Materials | Destroyed by G-47 Trooper with Particle Gun Last Messages --------------- 00556_ K-01 Serf collects debris. 00563_ Acquired Hacking Suite. 00566_ K-01 Serf collects debris. 00630_ Connecting with Terminal... 00630_ Current location identified: Materials >>Alert(Check) Current Alert Level: Low Security >>Traps(Locate) Found 4 traps in 1 array: 4x Alarm Trap Map updated. 00659_ Critical hit (Burn: +37). 00661_ Lgt. Treads destroyed. 00663_ Critical hit (Burn: +37). 00673_ Hrd. Light Armor Plating destroyed. 00695_ Lgt. Assault Rifle destroyed. 00703_ G-34 Mercenary destroyed. 00711_ Acquired 31 matter. 00711_ Lgt. Treads destroyed. 00713_ Sml. Laser destroyed. Map ----- +----------------------------------------------------+ | ???????????????????????????????????????????? | | ???????????????????????????????????????????? | | ???????????????????????????????????????????? | | ???????????????????????????????????????????? | | ???????????????????????????????????????????? | | ???????????????????????????????????????????? | | ???????????????????????????????????????????? | | ???????????????????????????????????????????? | | ???????????????????????????????????????????? | | ???????????????????????????????????????????? | | ???????????????????????????????????????????? | | ??????????????????##+###########???????????? | | ?????????????????? # #???????????? | | ??????????????????# # """ #???????????? | | ??????????????????# + """ #???????????? | | ??????????????????# # """ #???????????? | | ??????????????????# # "" #???????????? | | ??????????????????# # "T #???????????? | | ??????????????????# # "" ?????????????? | | ??????????????????+ #? ???????????????? | | #########?????????# #??#+#????#???????????? | | #?????????# #### #### #???????????? | | ###########^^ #???????????? | | ^^ +???????????? | | ################# """ ######???????????? | | #???????????????# """ @#????????????????? | | ==#???????????????# """g ####?????????????? | | ==#???????????????# g * #?????????????? | | ###???????????????# #?????????????? | | ??????????????????######+#######???????????? | | ??????????????????# "T" #???????????? | | ??????????????????# """ #???????????? | | ??????????????????# """ #???????????? | | ??????????????????# """ #???????????? | | ??????????????????# #???????????? | | ??????????????????##############???????????? | | | | | | | | | | | | | | | | | | | | | | | | | | | | | +----------------------------------------------------+ Best States ------------- Heat Dissipation 38 Energy Generation 10 Energy Capacity 250 Matter Stores 300 Matter Capacity 300 Sight Range 20 Terrain Scan Density 10 Armor Coverage 300 Evasion (%) 44 Recoil Reduction 2 Offensive Hacking 10 Item Schematics ----------------- None Robot Schematics ------------------ None Fabricated ------------ Nothing Repaired ---------- Nothing Studied --------- None Alien Tech Used ----------------- None Achievements -------------- You Again Challenges ------------ None Game ------ Seed SixGuidanceReactor Manual? 0 Play Time 00:11:17 Cumulative 39.2 hours Start 2026.01.30 @ 19:33:38 End 2026.01.30 @ 19:42:23 Sessions 1 Manual Loads 0 Difficulty Rogue Special Mode None Game No. 34 Rogue 34 Adventurer 0 Explorer 0 Win Type - Total 0 Types 0/0/0/0/0/0/0/0/0/0 Lore% 17 Gallery% 30 Achievement% 19 Wizard Run 0 Options --------- Layout 0 ASCII 0 Keyboard 1 Movement Numpad Keybinds 0 Fullscreen 2 Font 18/SmallcapsGlow Map View 76x50 Zoom Use 0% Tactical HUD 1 Map Filters NONE Filters NONE Steam 1 RUN: fc379fe0-dbf5-49e4-bd51-956fca006665